bitfinex/quotes_SOLUSD_20251223
["timestamp","ask_amount","ask_price","bid_price","bid_amount"]
[1766504975950,2.64437882,123.09,123.05,0.67]
[1766504976856,2.64437882,123.09,123.05,10.05099934]
[1766504977050,2.64437882,123.09,123.06,0.66]
[1766504977554,2.64437882,123.09,123.05,1.92437882]
[1766504977745,2.64437882,123.09,123.05,0.66]
[1766504977955,2.64437882,123.09,123.05,2.58437882]
[1766504979157,2.64437882,123.09,123.05,1.92437882]
[1766504979351,2.64437882,123.09,123.06,0.66]
[1766504979555,0.72,123.09,123.06,0.66]
[1766504980158,11.11767296,123.12,123.08,1.92437882]
[1766504980344,2.60437882,123.11,123.08,0.66]
[1766504980548,0.68,123.09,123.06,2.58437882]
[1766504981332,0.68,123.09,123.06,0.66]
[1766504981655,2.60437882,123.09,123.06,0.66]
[1766504981967,0.68,123.09,123.06,0.66]
[1766504982168,1.92437882,123.1,123.06,0.66]
[1766504982336,0.68,123.1,123.07,0.66]
[1766504982535,13.04205178,123.11,123.07,2.58437882]
[1766504983259,0.68,123.1,123.07,2.58437882]
[1766504984059,2.60437882,123.11,123.08,0.66]
[1766504984740,12.36205178,123.12,123.09,0.66]
[1766504984937,2.60437882,123.14,123.1,1.92437882]
[1766504985141,0.68,123.16,123.12,2.58437882]
[1766504985357,0.88,123.17,123.14,2.58437882]
[1766504985536,0.2,123.17,123.14,0.66]
[1766504985737,0.2,123.17,123.14,2.58437882]
[1766504988662,0.2,123.17,123.14,0.66]
[1766504991145,2.12437882,123.17,123.14,0.66]
[1766504991870,0.2,123.17,123.14,0.66]
[1766504992068,2.12437882,123.17,123.12,0.81221572]
[1766504992254,0.68,123.15,123.11,0.66]
[1766504992459,0.68,123.15,123.12,0.66]
[1766504993147,2.60437882,123.16,123.12,0.66]
[1766504994475,2.60437882,123.16,123.13,0.66]
[1766504995877,0.68,123.15,123.12,2.58437882]
[1766504996880,2.60437882,123.16,123.12,2.58437882]
[1766504998578,0.68,123.16,123.12,2.58437882]
[1766504999578,2.60437882,123.16,123.12,2.58437882]
[1766505000175,0.68,123.16,123.12,2.58437882]
[1766505000483,0.68,123.16,123.13,2.58437882]
[1766505000682,0.2,123.17,123.15,0.66]
[1766505001180,0.2,123.17,123.14,1.92437882]
[1766505001350,0.88,123.17,123.14,2.58437882]
[1766505002483,0.88,123.17,123.14,0.66]
[1766505003053,0.68,123.16,123.13,1.92437882]
[1766505003383,0.68,123.15,123.12,2.58437882]
[1766505003561,2.60437882,123.16,123.12,2.58437882]
[1766505003881,2.60437882,123.16,123.13,0.66]
[1766505004065,0.68,123.16,123.13,2.58437882]
[1766505005479,2.60437882,123.16,123.13,0.66]
[1766505006857,0.72,123.14,123.11,0.72]
[1766505007062,0.72,123.14,123.11,2.64437882]
[1766505007370,11.15767296,123.16,123.12,2.64437882]
[1766505007683,12.36205178,123.16,123.12,2.64437882]
[1766505007871,0.72,123.15,123.12,0.72]
[1766505009872,0.72,123.15,123.12,2.64437882]
[1766505011187,0.72,123.15,123.12,0.72]
[1766505011985,10.63767296,123.17,123.14,1.92437882]
[1766505012182,0.2,123.17,123.14,2.64437882]
[1766505013068,0.2,123.17,123.16,0.72]
[1766505013271,0.2,123.17,123.16,2.64437882]
[1766505013466,0.2,123.18,123.17,0.72]
[1766505013669,0.2,123.18,123.16,2.64437882]
[1766505014074,0.2,123.18,123.16,0.72]
[1766505014875,2.12437882,123.18,123.14,1.92437882]
[1766505015078,0.72,123.17,123.13,2.64437882]
[1766505015392,2.64437882,123.17,123.14,0.72]
[1766505015900,0.72,123.17,123.14,0.72]
[1766505016784,2.64437882,123.17,123.14,0.72]
[1766505017187,2.84437882,123.18,123.14,2.64437882]
[1766505018298,2.84437882,123.18,123.14,0.72]
[1766505018899,2.12437882,123.18,123.15,0.72]
[1766505019392,2.84437882,123.18,123.15,0.72]
[1766505020998,0.92,123.18,123.15,0.72]
[1766505021404,0.92,123.18,123.15,2.64437882]
[1766505021701,0.2,123.18,123.16,0.72]
[1766505022999,0.2,123.18,123.16,2.64437882]
[1766505023498,0.2,123.18,123.16,0.72]
[1766505023920,0.92,123.18,123.14,2.64437882]
[1766505024100,0.92,123.18,123.15,0.72]
[1766505024404,0.2,123.18,123.15,0.72]
[1766505025708,2.84437882,123.18,123.13,8.12124298]
[1766505025911,2.84437882,123.18,123.11,0.72]
[1766505025912,1.92437882,123.15,123.11,0.72]
[1766505026086,0.72,123.17,123.1,0.72]
[1766505026087,0.72,123.13,123.1,0.72]
[1766505026413,2.64437882,123.15,123.11,0.72]
[1766505027291,0.72,123.15,123.11,0.72]
[1766505027605,2.64437882,123.15,123.11,0.72]
[1766505027821,1.92437882,123.14,123.11,0.72]
[1766505028478,2.64437882,123.13,123.09,15.56]
[1766505028684,2.64437882,123.11,123.09,14.84]
[1766505029305,0.72,123.11,123.09,14.84]
[1766505029606,2.64437882,123.11,123.09,14.84]
[1766505029905,2.64437882,123.11,123.08,0.72]
[1766505030106,1.92437882,123.11,123.08,0.72]
[1766505030607,1.92437882,123.11,123.06,0.72]
[1766505030608,1.92437882,123.1,123.06,0.72]
[1766505030782,2.64437882,123.1,123.06,2.64437882]
[1766505030984,2.64437882,123.1,123.06,0.72]
[1766505032620,10.76788499,123.1,123.06,0.72]
[1766505032840,1.92437882,123.09,123.06,0.72]
[1766505033814,2.63437882,123.08,123.05,14.82]
[1766505034122,2.63437882,123.09,123.05,15.52]
[1766505034429,0.71,123.09,123.06,0.7]
[1766505035328,12.36205178,123.1,123.06,1.92437882]
[1766505035526,13.07205178,123.12,123.08,0.7]
[1766505036025,14.15310614,123.12,123.08,0.7]
[1766505037603,10.43767296,123.12,123.1,0.7]
[1766505037809,3.68543318,123.14,123.1,3.70543318]
[1766505038011,0.68,123.14,123.1,3.70543318]
[1766505038409,11.1258247,123.15,123.11,3.70543318]
[1766505038410,3.00543318,123.15,123.11,3.70543318]
[1766505038614,11.80576428,123.15,123.11,3.70543318]
[1766505038822,11.80576428,123.15,123.11,0.7]
[1766505039031,3.68543318,123.14,123.11,0.7]
[1766505039827,0.68,123.15,123.11,3.70543318]
[1766505040029,3.68543318,123.15,123.11,0.7]
[1766505041914,10.43767296,123.15,123.12,3.70543318]
[1766505042425,0.68,123.14,123.1,0.7]
[1766505042749,3.68543318,123.15,123.11,0.7]
[1766505043418,3.68543318,123.15,123.11,3.70543318]
[1766505044331,3.68543318,123.15,123.12,0.7]
[1766505047030,3.68543318,123.15,123.09,8.9363016]
[1766505047235,3.68543318,123.15,123.11,0.7]
[1766505047437,0.68,123.14,123.11,0.7]
[1766505048544,3.68543318,123.15,123.12,0.7]
[1766505049246,0.68,123.15,123.12,0.7]
[1766505049632,0.68,123.15,123.12,3.70543318]
[1766505050139,0.68,123.15,123.12,0.7]
[1766505050444,3.68543318,123.15,123.12,0.7]
[1766505052245,0.68,123.15,123.12,0.7]
[1766505061455,14.12310614,123.16,123.13,0.7]
[1766505062257,11.11767296,123.16,123.13,0.7]
[1766505062459,14.12310614,123.16,123.13,0.7]
[1766505062654,3.20543318,123.18,123.15,0.7]
[1766505062869,0.88,123.18,123.15,0.7]
[1766505063055,0.68,123.17,123.13,3.00543318]
[1766505063255,3.68543318,123.17,123.14,0.7]
[1766505063555,0.68,123.16,123.12,0.7]
[1766505063744,0.68,123.15,123.12,0.7]
[1766505063946,3.68543318,123.16,123.12,0.7]
[1766505064142,3.68543318,123.16,123.13,0.7]
[1766505065265,0.68,123.16,123.13,0.7]
[1766505065456,3.00543318,123.17,123.13,0.7]
[1766505065642,3.68543318,123.17,123.13,0.7]
[1766505066566,3.20543318,123.18,123.14,0.7]
[1766505066765,3.86543318,123.18,123.14,0.7]
[1766505066969,0.66,123.17,123.14,0.7]
[1766505067263,0.2,123.18,123.14,0.7]
[1766505067467,0.2,123.18,123.15,3.00543318]
[1766505067648,0.2,123.18,123.16,0.69]
[1766505068464,0.2,123.18,123.15,0.69]
[1766505069941,10.43767296,123.19,123.15,11.12537859]
[1766505070273,0.2,123.22,123.19,0.69]
[1766505070469,0.2,123.22,123.2,3.00543318]
[1766505070654,0.2,123.22,123.19,3.69543318]
[1766505071171,0.86,123.22,123.19,0.69]
[1766505071754,0.66,123.21,123.17,3.69543318]
[1766505073151,0.66,123.19,123.16,0.69]
[1766505073468,3.66543318,123.2,123.16,3.69543318]
[1766505074173,3.66543318,123.2,123.16,0.69]
[1766505075672,3.66543318,123.2,123.16,11.12484203]
[1766505075978,0.86,123.22,123.19,0.69]
[1766505077258,3.00543318,123.21,123.19,0.69]
[1766505077459,3.86543318,123.22,123.18,0.69]
[1766505078661,3.00543318,123.21,123.18,0.69]
[1766505078974,3.66543318,123.21,123.18,0.69]
[1766505079878,0.66,123.19,123.14,22.2535491]
[1766505080178,0.66,123.18,123.14,3.69543318]
[1766505080378,0.66,123.18,123.15,0.69]
[1766505081164,3.00543318,123.19,123.15,3.69543318]
[1766505081362,3.66543318,123.19,123.15,3.69543318]
[1766505082162,0.66,123.21,123.17,0.69]
[1766505082368,3.66543318,123.21,123.17,0.69]
[1766505082914,0.66,123.2,123.17,0.69]
[1766505084585,3.66543318,123.19,123.15,0.69]
[1766505086354,8.11701553,123.2,123.14,0.69]
[1766505086355,3.66543318,123.18,123.14,0.69]
[1766505087486,3.66543318,123.17,123.13,0.69]
[1766505088168,0.66,123.15,123.11,26.63781794]
[1766505088567,0.66,123.15,123.11,22.94238476]
[1766505088786,0.66,123.15,123.12,0.69]
[1766505091373,0.66,123.14,123.11,14.82]
[1766505091580,3.66543318,123.13,123.09,8.81388537]
[1766505091782,3.00543318,123.12,123.09,0.69]
[1766505091969,3.66543318,123.12,123.09,0.69]
[1766505092500,3.00543318,123.12,123.09,0.69]
[1766505092817,3.66543318,123.12,123.09,0.69]
[1766505093298,3.00543318,123.12,123.09,0.69]
[1766505093602,3.66543318,123.13,123.09,0.69]
[1766505093894,0.66,123.12,123.09,0.69]
[1766505094094,3.66543318,123.13,123.09,0.69]
[1766505095999,8.11979598,123.16,123.1,0.71]
[1766505096205,13.44310614,123.15,123.12,0.71]
[1766505097273,14.14310614,123.15,123.12,0.71]
[1766505098068,13.06002012,123.15,123.12,0.71]
[1766505099796,2.62234716,123.15,123.12,0.71]
[1766505100870,1.92234716,123.15,123.12,0.71]
[1766505101069,1.92234716,123.16,123.12,0.71]
[1766505101669,2.62234716,123.16,123.12,0.71]
[1766505101871,2.62234716,123.16,123.12,2.64234716]
[1766505102089,2.62234716,123.16,123.13,0.72]
[1766505106105,1.92234716,123.15,123.12,0.72]
[1766505107185,2.62234716,123.15,123.12,0.72]
[1766505107686,0.7,123.13,123.09,0.72]
[1766505107891,2.62234716,123.13,123.09,0.72]
[1766505108396,2.62234716,123.13,123.09,1.92234716]
[1766505108606,2.62234716,123.13,123.1,0.72]
[1766505109521,1.92234716,123.12,123.1,0.72]
[1766505109698,2.62234716,123.13,123.1,0.72]
[1766505113912,0.7,123.12,123.09,0.72]
[1766505115783,0.7,123.12,123.07,15.54]
[1766505116102,0.7,123.12,123.09,0.72]
[1766505118210,2.62234716,123.12,123.09,0.72]
[1766505118427,2.62234716,123.1,123.07,14.82]
[1766505118783,2.62234716,123.1,123.07,15.54]
[1766505119318,0.7,123.1,123.07,15.54]
[1766505119625,0.2,123.22,123.14,10.43767296]
[1766505119794,0.2,123.22,123.15,49.83164134]
[1766505120111,0.1,123.26,123.15,49.83164134]
[1766505120112,0.1,123.26,123.21,1.92234716]
[1766505120293,0.1,123.26,123.23,8.11490708]
[1766505120498,0.1,123.26,123.24,1.92234716]
[1766505120698,0.1,123.26,123.23,10.03725424]
[1766505120914,1e-08,123.26,123.24,5.17055049]
[1766505121115,1e-08,123.27,123.25,1.92234716]
[1766505121412,1e-08,123.28,123.26,1.92234716]
[1766505121628,0.1,123.29,123.27,1.92234716]
[1766505121629,1e-08,123.29,123.27,1.92234716]
[1766505121914,1e-08,123.29,123.28,4.79224115]
[1766505122105,1e-08,123.29,123.27,4.79224115]
[1766505122311,1e-08,123.29,123.24,3.24820333]
[1766505122312,0.70000001,123.29,123.24,16.15409567]
[1766505122490,0.70000001,123.29,123.25,8.11354085]
[1766505123216,0.70000001,123.29,123.25,12.905782]
[1766505125016,5.49224115,123.28,123.23,4.79224115]
[1766505125197,4.79224115,123.27,123.22,30.86147067]
[1766505125407,0.7,123.26,123.23,4.99224115]
[1766505125591,0.7,123.26,123.22,27.72732278]
[1766505125792,0.7,123.26,123.23,8.11489552]
[1766505127534,0.7,123.26,123.23,12.90713667]
[1766505127828,0.7,123.26,123.23,8.11489552]
[1766505128115,0.7,123.26,123.22,27.72773892]
[1766505128418,0.7,123.26,123.22,22.93549777]
[1766505130225,5.49224115,123.26,123.22,22.93549777]
[1766505130898,0.7,123.26,123.22,22.93549777]
[1766505132716,11.10767297,123.29,123.24,4.79224115]
[1766505132903,0.67000001,123.29,123.24,4.79224115]
[1766505133622,1e-08,123.29,123.25,4.79224115]
[1766505133793,0.67000001,123.29,123.25,4.79224115]
[1766505134417,0.67000001,123.29,123.27,4.79224115]
[1766505134418,1e-08,123.29,123.27,4.79224115]
[1766505134594,1e-08,123.29,123.28,8.11161583]
[1766505135235,1e-08,123.29,123.26,8.92370555]
[1766505135899,1e-08,123.29,123.26,0.8112932]
[1766505136098,1e-08,123.29,123.25,23.34349717]
[1766505136099,0.67000001,123.29,123.25,18.55125602]
[1766505136411,1e-08,123.29,123.26,8.11290749]
[1766505137420,1e-08,123.29,123.27,0.81122738]
[1766505137799,1e-08,123.29,123.27,5.60346853]
[1766505138029,1e-08,123.29,123.27,0.81122738]
[1766505138929,1e-08,123.29,123.27,5.60346853]
[1766505139124,1e-08,123.29,123.27,0.81122738]
[1766505139335,4.79224116,123.29,123.23,0.8114907]
[1766505139516,5.46224115,123.27,123.22,22.93517486]
[1766505139718,0.67,123.27,123.23,8.11482439]
[1766505141639,0.67,123.27,123.22,27.72756678]
[1766505141933,0.67,123.26,123.22,14.82]
[1766505142137,1.63780729,123.26,123.22,14.82]
[1766505142308,4.79224115,123.27,123.22,23.61554178]
[1766505142720,4.79224115,123.27,123.22,28.40778293]
[1766505142958,4.79224115,123.28,123.23,0.68]
[1766505143141,18.54884075,123.29,123.23,0.68]
[1766505143437,4.79224115,123.28,123.23,8.79481395]
[1766505143639,4.79224115,123.28,123.23,13.5870551]
[1766505144022,1.91840302,123.28,123.23,10.71321697]
[1766505144223,0.67,123.27,123.23,8.79481395]
[1766505144726,2.58840302,123.27,123.23,8.79481395]
[1766505145634,1.91840302,123.27,123.23,8.79481395]
[1766505146541,1.91840302,123.27,123.23,0.68]
[1766505146748,1.91840302,123.26,123.22,23.64518701]
[1766505147458,0.2,123.3,123.26,11.14767296]
[1766505147737,0.2,123.3,123.28,0.71]
[1766505148315,2.11840302,123.3,123.26,0.71]
[1766505148717,2.78840302,123.3,123.26,0.71]
[1766505149439,0.87,123.3,123.26,0.71]
[1766505149943,2.78840302,123.3,123.26,0.71]
[1766505150529,0.67,123.28,123.24,1.52142486]
[1766505150733,0.67,123.28,123.24,0.71]
[1766505151336,0.67,123.28,123.24,10.74222595]
[1766505151653,2.78840302,123.3,123.26,0.71]
[1766505151960,0.87,123.3,123.26,0.71]
[1766505152650,0.87,123.3,123.26,0.61]
[1766505153755,0.87,123.3,123.26,2.52840302]
[1766505154130,0.87,123.3,123.26,0.61]
[1766505159961,0.72,123.29,123.26,0.61]
[1766505160964,0.92,123.3,123.26,8.11288904]
[1766505161150,0.92,123.3,123.27,0.71]
[1766505162266,0.72,123.27,123.23,8.82454133]
[1766505162466,2.99626144,123.26,123.23,0.71]
[1766505163259,3.71626144,123.27,123.23,0.71]
[1766505163740,3.71626144,123.26,123.22,14.82]
[1766505163941,2.99626144,123.25,123.21,0.71]
[1766505164170,3.71626144,123.24,123.19,0.71]
[1766505164470,3.71626144,123.23,123.19,0.71]
[1766505165557,0.72,123.23,123.19,0.71]
[1766505166060,3.71626144,123.23,123.19,0.71]
[1766505166573,0.72,123.23,123.19,11.11372393]
[1766505166868,0.72,123.23,123.19,3.70626144]
[1766505167178,3.71626144,123.24,123.2,0.71]
[1766505167376,2.99626144,123.24,123.2,0.71]
[1766505167556,2.99626144,123.26,123.21,3.70626144]
[1766505167744,10.43767296,123.28,123.21,0.71]
[1766505167745,3.71626144,123.25,123.21,0.71]
[1766505167944,3.71626144,123.24,123.2,8.82673883]
[1766505168161,2.99626144,123.23,123.2,0.71]
[1766505169075,3.71626144,123.24,123.2,0.71]
[1766505170465,0.72,123.29,123.24,0.71]
[1766505170668,0.72,123.29,123.25,2.99626144]
[1766505170872,0.72,123.29,123.24,3.70626144]
[1766505171072,3.71626144,123.29,123.24,0.71]
[1766505171879,2.99626144,123.27,123.24,0.71]
[1766505172060,3.71626144,123.25,123.21,10.43767296]
[1766505172373,3.71626144,123.25,123.21,0.71]
[1766505172553,3.71626144,123.25,123.21,8.82605372]
[1766505172750,3.71626144,123.25,123.21,11.82231516]
[1766505173001,0.72,123.25,123.22,0.71]
[1766505174460,24.36746131,123.33,123.24,0.71]
[1766505174662,7.89649335,123.31,123.26,8.50649335]
[1766505174856,7.89649335,123.31,123.26,0.71]
[1766505175055,7.89649335,123.31,123.27,0.71]
[1766505175253,0.1,123.31,123.27,8.50649335]
[1766505175454,7.89649335,123.31,123.27,0.71]
[1766505175655,0.1,123.31,123.27,8.50649335]
[1766505175849,10.53767296,123.31,123.27,8.50649335]
[1766505176049,0.1,123.31,123.27,15.90840543]
[1766505176288,0.1,123.31,123.27,16.61840543]
[1766505176585,0.1,123.31,123.28,8.50649335]
[1766505177873,0.1,123.31,123.28,0.71]
[1766505178071,7.89649335,123.31,123.28,0.71]
[1766505178387,0.1,123.31,123.27,17.42963281]
[1766505179075,8.61649335,123.31,123.27,1.52122738]
[1766505179256,8.61649335,123.31,123.26,15.90919621]
[1766505179455,0.72,123.3,123.26,15.90919621]
[1766505179656,0.72,123.3,123.26,16.61919621]
[1766505180557,0.72,123.3,123.26,8.82270286]
[1766505180882,0.72,123.3,123.26,16.61919621]
[1766505181179,0.72,123.3,123.24,28.74459335]
[1766505181180,0.72,123.27,123.24,14.82]
[1766505181366,8.51649335,123.27,123.23,8.11486071]
[1766505181572,8.51649335,123.27,123.23,16.62135406]
[1766505181957,7.79649335,123.27,123.21,11.24929539]
[1766505182162,8.51649335,123.26,123.21,18.94416631]
[1766505182368,8.51649335,123.28,123.24,8.50649335]
[1766505183075,0.72,123.28,123.24,8.50649335]
[1766505183275,8.51649335,123.28,123.24,8.50649335]
[1766505183582,8.51649335,123.28,123.23,15.91097186]
[1766505183891,8.51649335,123.26,123.22,7.79649335]
[1766505184096,8.1109579,123.29,123.24,7.79649335]
[1766505184303,8.51649335,123.28,123.24,7.79649335]
[1766505184503,8.51649335,123.28,123.24,8.50649335]
[1766505184672,0.72,123.28,123.24,8.50649335]
[1766505186080,0.72,123.28,123.24,0.71]
[1766505186280,0.72,123.28,123.24,8.50649335]
[1766505188911,0.72,123.28,123.24,0.71]
[1766505189209,0.72,123.28,123.24,8.50649335]
[1766505189908,8.51649335,123.28,123.24,8.50649335]
[1766505190111,0.72,123.28,123.24,8.50649335]
[1766505192327,7.79649335,123.29,123.25,8.50649335]
[1766505192328,0.69,123.29,123.25,8.50649335]
[1766505192795,0.69,123.29,123.26,7.79649335]
[1766505193512,0.69,123.29,123.25,8.50649335]
[1766505194009,0.69,123.29,123.25,3.70641707]
[1766505194607,0.69,123.29,123.25,11.81989502]
[1766505194808,0.69,123.29,123.26,2.99641707]
[1766505195709,3.09641707,123.31,123.26,11.10932863]
[1766505195887,3.78641707,123.31,123.27,0.71]
[1766505196088,0.69,123.3,123.27,0.71]
[1766505196295,0.69,123.3,123.26,11.10932863]
[1766505196495,0.69,123.3,123.26,11.81932863]
[1766505196781,0.69,123.3,123.27,2.99641707]
[1766505197518,0.1,123.31,123.27,0.71]
[1766505197703,0.79,123.31,123.28,2.99641707]
[1766505199717,0.1,123.31,123.28,2.99641707]
[1766505199914,0.1,123.31,123.29,0.71]
[1766505200218,0.1,123.31,123.28,3.70641707]
[1766505203815,0.1,123.31,123.28,0.71]
[1766505204013,0.1,123.31,123.28,3.70641707]
[1766505205714,0.1,123.31,123.29,2.99641707]
[1766505205914,0.1,123.31,123.29,3.70641707]
[1766505206301,0.1,123.31,123.29,2.99641707]
[1766505208998,0.1,123.31,123.3,2.99641707]
[1766505212013,0.69,123.3,123.25,11.81951769]
[1766505212213,3.68641707,123.3,123.26,0.71]
[1766505212399,3.68641707,123.3,123.26,3.70641707]
[1766505213326,0.69,123.3,123.26,3.70641707]
[1766505213531,0.69,123.3,123.26,8.11285855]
[1766505213826,11.24767296,123.31,123.27,3.64641707]
[1766505215097,14.24409003,123.31,123.27,3.64641707]
[1766505215304,0.71,123.3,123.27,0.65]
[1766505215541,3.70641707,123.3,123.27,0.65]
[1766505216232,0.71,123.3,123.27,0.65]
[1766505216536,0.71,123.3,123.27,3.64641707]
[1766505216706,10.53767296,123.31,123.27,11.77861716]
[1766505216905,11.23767296,123.31,123.27,11.77861716]
[1766505217226,0.8,123.31,123.28,3.66641707]
[1766505218125,0.8,123.31,123.27,8.11220009]
[1766505218126,0.1,123.31,123.29,3.66641707]
[1766505218636,0.1,123.31,123.3,3.66641707]
[1766505218837,0.7,123.33,123.3,3.66641707]
[1766505219133,0.7,123.34,123.31,2.99641707]
[1766505219821,0.1,123.35,123.31,3.61641707]
[1766505220036,0.8,123.35,123.31,0.62]
[1766505220236,0.8,123.35,123.31,2.99641707]
[1766505220407,0.7,123.34,123.31,2.99641707]
[1766505220829,0.7,123.34,123.3,8.73020572]
[1766505221134,0.7,123.34,123.31,2.99641707]
[1766505221929,0.7,123.34,123.31,1.91607398]
[1766505222110,0.7,123.34,123.3,8.73020572]
[1766505222312,0.7,123.34,123.31,1.91607398]
[1766505223024,0.7,123.34,123.31,10.64546571]
[1766505223220,0.8,123.35,123.32,1.91607398]
[1766505223606,1e-08,123.35,123.34,2.53607398]
[1766505223810,0.7,123.39,123.35,0.62]
[1766505224003,0.7,123.39,123.36,1.91607398]
[1766505224206,0.7,123.39,123.35,2.53607398]
[1766505224406,11.13767296,123.39,123.36,1.91607398]
[1766505224633,0.7,123.39,123.36,2.53607398]
[1766505224836,10.43767296,123.4,123.37,0.62]
[1766505225131,10.71931398,123.41,123.37,0.62]
[1766505225336,10.71931398,123.41,123.37,2.53607398]
[1766505225507,21.15698694,123.41,123.37,0.62]
[1766505226109,0.7,123.4,123.36,1.91607398]
[1766505227531,0.7,123.4,123.36,8.72628406]
[1766505227836,0.7,123.4,123.38,1.91607398]
[1766505228049,0.7,123.4,123.37,1.91607398]
[1766505229622,0.7,123.4,123.36,8.72620487]
[1766505229826,0.7,123.4,123.37,1.91607398]
[1766505230532,0.7,123.4,123.37,2.53607398]
[1766505231238,0.8,123.42,123.38,1.91607398]
[1766505231813,0.8,123.42,123.38,2.53607398]
[1766505232339,0.8,123.42,123.38,1.91607398]
[1766505232640,0.8,123.42,123.38,2.53607398]
[1766505233643,0.7,123.41,123.38,1.91607398]
[1766505234431,0.7,123.41,123.38,2.53607398]
[1766505235338,0.7,123.41,123.38,10.64091888]
[1766505235845,0.7,123.41,123.38,8.7248449]
[1766505236142,0.7,123.41,123.37,8.72551653]
[1766505236440,0.7,123.41,123.37,10.64159051]
[1766505236646,0.7,123.41,123.37,8.72551653]
[1766505236842,0.7,123.41,123.37,10.64159051]
[1766505238749,0.7,123.41,123.38,0.62]
[1766505239448,0.7,123.41,123.38,2.53607398]
[1766505239751,0.7,123.41,123.38,0.62]
[1766505240050,0.7,123.41,123.36,9.53671053]
[1766505240222,0.7,123.41,123.37,10.64165413]
[1766505240422,0.7,123.41,123.37,2.53607398]
[1766505240924,1.91607398,123.4,123.36,1.91607398]
[1766505241119,0.7,123.39,123.37,1.91607398]
[1766505241420,0.7,123.39,123.36,8.72600887]
[1766505241421,0.7,123.39,123.36,2.53607398]
[1766505242224,0.7,123.39,123.36,0.62]
[1766505242531,0.7,123.39,123.36,2.53607398]
[1766505243551,0.7,123.39,123.35,1.91607398]
[1766505243736,2.61607398,123.39,123.35,1.91607398]
[1766505243931,0.7,123.38,123.35,1.91607398]
[1766505244541,0.7,123.38,123.35,10.02295098]
[1766505244932,0.7,123.38,123.34,24.33812827]
[1766505245126,0.7,123.36,123.32,10.02462021]
[1766505245754,2.61607398,123.36,123.32,1.91607398]
[1766505246041,0.7,123.35,123.32,2.53607398]
[1766505246259,0.7,123.35,123.31,10.64543007]
[1766505247257,0.69,123.34,123.3,18.14710398]
[1766505247569,2.60607398,123.35,123.31,10.64563595]
[1766505247737,0.69,123.36,123.32,2.53607398]
[1766505248335,0.69,123.36,123.33,1.91607398]
[1766505248547,13.04374694,123.38,123.34,1.91607398]
[1766505248749,11.12767296,123.38,123.35,1.91607398]
[1766505248954,10.43767296,123.38,123.34,2.53607398]
[1766505249257,0.69,123.37,123.34,2.53607398]
[1766505251245,0.69,123.37,123.33,0.62]
[1766505251446,2.60607398,123.37,123.33,2.53607398]
[1766505252563,0.69,123.37,123.33,2.53607398]
[1766505253464,0.69,123.37,123.33,0.62]
[1766505253635,0.69,123.37,123.33,2.53607398]
[1766505260178,2.60607398,123.35,123.31,10.64550388]
[1766505260679,0.69,123.34,123.3,24.82623923]
[1766505260852,0.69,123.35,123.32,1.91607398]
[1766505261159,0.69,123.35,123.32,2.53607398]
[1766505261356,0.69,123.37,123.33,10.64422584]
[1766505261871,0.69,123.37,123.35,1.91607398]
[1766505262569,0.69,123.37,123.34,10.64365458]
[1766505263574,0.69,123.37,123.34,2.53607398]
[1766505264279,0.69,123.37,123.34,10.64373326]
[1766505266280,0.69,123.37,123.34,0.62]
[1766505266465,0.69,123.37,123.34,2.53607398]
[1766505267079,0.69,123.37,123.33,0.62]
[1766505267253,0.69,123.36,123.33,2.53607398]
[1766505272286,0.69,123.36,123.33,10.64433295]